Cogmind - Beta 16 --- EXPLORER MODE // 2025.11.27 @ 10:50:47 Player: K.K.Y. Result: Destroyed by as-95470 with Assembled Blade Performance ------------- Evolutions (0) 0 Regions Visited (2) 400 Robots Destroyed (10) 50 Value Destroyed (229) 229 Prototype IDs (0) 0 Alien Tech Used (0) 0 Bonus (0) 0 TOTAL SCORE: 679 Bonus ------- None Cogmind --------- Core Integrity 0/250 Matter 292/300 Energy 90/100 System Corruption 1% Temperature Cool (0) Movement Hovering (80) Location -10/Mines Parts ------- > --- POWER (1) -------- (None) > --- PROPULSION (3) --- Combat Airjet > --- UTILITY (2) ------ Weight Redist. System Signal Interpreter > --- WEAPON (2) ------- Light Assault Rifle Light Assault Rifle > --- INVENTORY (5) ---- Small Storage Unit Huge Storage Unit Structural Scanner Machine Analyzer Mining Laser Peak State ------------ > --- POWER ------------ Light Nuclear Core > --- PROPULSION ------- Combat Airjet Flight Unit Flight Unit > --- UTILITY ---------- Weight Redist. System Signal Interpreter > --- WEAPON ----------- Light Assault Rifle Light Assault Rifle > --- INVENTORY -------- Small Storage Unit Huge Storage Unit Structural Scanner Machine Analyzer Mining Laser [Rating: 15] Favorites ----------- Power Light Nuclear Core Power Core Light Nuclear Core Propulsion Flight Unit Leg Aluminum Leg Hover Unit Combat Airjet Flight Unit Flight Unit Utility Signal Interpreter Device Weight Redist. System Processor Signal Interpreter Weapon Light Assault Rifle Ballistic Gun Light Assault Rifle Build | -11 -10 -10 ------- Run | Yrd Mat Min Slots Evolved 1 | . 1 . Power . | . . . Propulsion 1 | . 1 . Utility . | . . . Weapon . | . . . Parts Attached 14 | . 11 3 Power 1 | . 1 . Engine . | . . . Core 1 | . 1 . Reactor . | . . . Propulsion 7 | . 4 3 Treads . | . . . Leg 1 | . 1 . Wheel . | . . . Hover 1 | . . 1 Flight 5 | . 3 2 Utility 2 | . 2 . Device 1 | . 1 . Storage . | . . . Processor 1 | . 1 . Hackware . | . . . Protection . | . . . Artifact . | . . . Weapon 4 | . 4 . Energy Gun . | . . . Energy Cannon . | . . . Ballistic Gun 4 | . 4 . Ballistic Cannon . | . . . Launcher . | . . . Special Weapon . | . . . Impact Weapon . | . . . Slashing Weapon . | . . . Piercing Weapon . | . . . Special Melee Weapon . | . . . Unidentified Prototypes . | . . . Parts Lost 5 | . 1 4 Power 1 | . . 1 Propulsion 4 | . 1 3 Utility . | . . . Weapon . | . . . Highest Loss Streak 3 | . 1 3 To Critical Strikes . | . . . Average Backups 4 | 2 4 5 Power . | . . . Propulsion . | 1 . . Utility 2 | . 2 4 Weapon . | . . 1 Tool/Special . | . . . Unused Backups 8 | . 3 5 Power 1 | . 1 . Propulsion 1 | . 1 . Utility 5 | . 1 4 Weapon 1 | . . 1 Tool/Special . | . . . Average Slot Usage (%) 65 | . 58 89 Core 10 | . 10 11 Leg 4 | . 5 . Flight 14 | . 11 25 Device 7 | . 6 12 Processor 8 | . 6 12 Ballistic Gun 18 | . 16 25 Peak Build Rating 15 | . 11 15 Average Rating 7 | . 7 11 On Entrance 3 | . . 10 Avg Prop Armor Cover (%) . | . . . Naked Turns 22 | . 22 . Heaviest Build 7 | . 7 7 Greatest Support 18 | 3 18 18 Greatest Overweight (x) . | . . . Average Overweight (x) . | . . . Largest Inventory Capacity 5 | 5 5 5 Average Capacity 5 | 5 5 5 Most Carried 5 | 5 5 5 Average Carried 4 | 3 4 5 Final Capacity 5 | 5 5 5 Final Carried 5 | 5 5 5 Class Distribution -------------------- 90% | Hacker-Mutant 9% | Scavenger-Mutant Dominant Class ---------------- Hacker-Mutant | -10/Materials Hacker-Mutant | -10/Mines Resources | -11 -10 -10 ----------- Run | Yrd Mat Min Matter Collected 421 | 200 116 105 Remotely . | . . . Salvage Created 379 | . 342 37 Parts 19 | . 19 . Haulers Intercepted 1 | . 1 . Recyclers Shooed . | . . . Parts Field Recycled . | . . . Retrieved Matter . | . . . Parts Self-Destructed . | . . . Prevented . | . . . Parts Restored . | . . . Kills | -11 -10 -10 ------- Run | Yrd Mat Min Combat Hostiles Destroyed 9 | . 6 3 Guns 9 | . 6 3 Classes Destroyed 6 | . 5 1 Hauler 1 | . 1 . Mechanic 1 | . 1 . Watcher 2 | . 2 . Swarmer 2 | . 2 . Grunt 4 | . 4 . Assembled 3 | . . 3 Best Kill Streak 3 | . 3 3 Combat Bots Only 3 | . 2 3 Max Kills in Single Turn 1 | . 1 1 Gunslinging . | . . . Exploded . | . . . Melee . | . . . Uniques/NPCs Destroyed . | . . . Combat | -11 -10 -10 -------- Run | Yrd Mat Min Hostile Shots Fired 106 | . 65 41 Missed 35 | . 24 11 Hits 71 | . 41 30 Melee 1 | . . 1 Projectile 70 | . 41 29 AOE 5 | . . 5 Damage Taken 668 | . 312 356 Core 266 | . 146 120 Absorbed by Shields . | . . . Ignored by Resistances 410 | . 199 211 Core Remaining (%) 100 | 100 . . Volleys Fired 65 | . 54 11 Largest 2 | . 2 2 Hottest 40 | . 40 40 Shots Fired 99 | . 77 22 Gun 99 | . 77 22 Cannon . | . . . Launcher . | . . . Special . | . . . Kinetic 99 | . 77 22 Thermal . | . . . Explosive . | . . . Electromagnetic . | . . . Robot Hit Streak 19 | . 19 17 Robot Miss Streak 3 | . 3 1 Penetration Max . | . . . Secondary Targets 1 | . 1 . Max Gunslinging Chain 1 | . 1 . Shots Hit Robots 87 | . 67 20 Core Hits 36 | . 27 9 Critical Kills . | . . . Critical Parts Destroyed . | . . . Critical Strikes . | . . . Melee Attacks . | . . . Impact . | . . . Slashing . | . . . Piercing . | . . . Sneak Attacks . | . . . Combat Hostiles . | . . . Follow-up Attacks . | . . . Damage Inflicted 691 | . 535 156 Guns 688 | . 532 156 Cannons . | . . . Explosions . | . . . Melee . | . . . Ramming 3 | . 3 . Kinetic 688 | . 532 156 Thermal . | . . . Explosive . | . . . Electromagnetic . | . . . Impact . | . . . Slashing . | . . . Piercing . | . . . Highest Corruption 1 | . 1 1 Average Corruption 1 | . 1 1 Corruption Purged . | . . . Corruption Blocked . | . . . Effects 1 | . . 1 Message Errors 1 | . . 1 Overload Shots . | . . . Overflow Damage . | . . . Projectiles . | . . . Explosions . | . . . Melee . | . . . Knockbacks . | . . . Impact . | . . . Kinetic . | . . . Secondary . | . . . Self-Inflicted Damage . | . . . Shots . | . . . Rammed . | . . . Targets Rammed 1 | . 1 . Kicked 1 | . 1 . Crushed . | . . . Highest Temperature 144 | . 144 8 Average Temperature 44 | . 49 4 Received Heat Transfer 267 | . 267 . Siege Activations . | . . . Martial Activations . | . . . Shielding Activations . | . . . Robots Disrupted . | . . . Combat Hostiles . | . . . Robots Corrupted . | . . . Combat Hostiles . | . . . Parts Fried . | . . . Impact Corruptions . | . . . Robots Melted . | . . . Combat Hostiles . | . . . Parts Melted . | . . . Heat Transferred . | . . . Parts Sabotaged . | . . . Parts Stolen . | . . . Parts Stripped . | . . . Power Chain Reactions . | . . . Alert | -11 -10 -10 ------- Run | Yrd Mat Min Maximum Alert Level . | . . . Low Security (%) 100 | 100 100 100 Level 1 . | . . . Level 2 . | . . . Level 3 . | . . . Level 4 . | . . . Level 5 . | . . . High Security . | . . . Max Security . | . . . Peak Influence 60 | . 60 30 Initial . | . . . Average 10 | . 12 5 Influence Increases 206 | . 176 30 Destroy 0b10 Robot/C 120 | . 120 . Destroy 0b10 Robot/NC 20 | . 20 . Destroy Leader 36 | . 36 . Lose Combat Pursuer 30 | . . 30 Influence Decreases 206 | . 176 30 Time Decay 196 | . 166 30 Lost Part 10 | . 10 . Squads Dispatched . | . . . Investigation . | . . . Extermination . | . . . Reinforcement . | . . . Assault . | . . . Garrison . | . . . Intercept . | . . . Searches Triggered . | . . . Construction Impeded . | . . . Haulers Reinforced . | . . . Active Scanning Responses . | . . . Cargo Convoy Interrupts . | . . . Stealth | -11 -10 -10 --------- Run | Yrd Mat Min Distress Signals . | . . . Communications Jammed . | . . . Distress Signals . | . . . Times Spotted 41 | . 13 28 Peak Tracking Total 20 | . 4 20 Tactical Retreats 2 | . . 2 Traps | -11 -10 -10 ------- Run | Yrd Mat Min Traps Triggered 1 | . 1 . Indirectly . | . . . Trap Hack Attempts . | . . . Triggered . | . . . Disarmed . | . . . Reprogrammed . | . . . Reused . | . . . Traps Extracted . | . . . Installed . | . . . Triggered . | . . . Machines | -11 -10 -10 ---------- Run | Yrd Mat Min Machines Disabled . | . . . Max in Single Turn . | . . . Machines Repaired . | . . . Machines Dismantled . | . . . Machines Sabotaged . | . . . Overloaded Fab Kills . | . . . Hacking | -11 -10 -10 --------- Run | Yrd Mat Min Machines Accessed . | . . . Terminals . | . . . Fabricators . | . . . Repair Stations . | . . . Recycling Units . | . . . Scanalyzers . | . . . Garrison Access . | . . . Total Hacks . | . . . Successful . | . . . Failed . | . . . Catastrophic . | . . . Database Lockouts . | . . . Manual . | . . . Terminals . | . . . Fabricators . | . . . Repair Stations . | . . . Recycling Units . | . . . Scanalyzers . | . . . Garrison Access . | . . . Terminal Hacks . | . . . Fabricator Hacks . | . . . Repair Station Hacks . | . . . Recycling Unit Hacks . | . . . Scanalyzer . | . . . Garrison Access Hacks . | . . . Unauthorized Hacks . | . . . Terminals . | . . . Fabricators . | . . . Repair Stations . | . . . Recycling Units . | . . . Scanalyzers . | . . . Garrison Access . | . . . Data Cores Recovered . | . . . Used . | . . . Hacking Detections . | . . . Full Trace Events . | . . . Feedback Events . | . . . Feedback Blocked . | . . . Robot Schematics Acquired . | . . . Robots Built . | . . . Authchips . | . . . Time . | . . . Total Robot Build Rating . | . . . Part Schematics Acquired . | . . . Parts Built . | . . . Authchips . | . . . Time . | . . . Total Part Build Rating . | . . . Part Studies Acquired . | . . . Parts Repaired . | . . . Time . | . . . Parts Recycled . | . . . Recycled Matter . | . . . Retrieved Matter . | . . . Retrieved Components . | . . . Parts Scanalyzed . | . . . Part Schematics Acquired . | . . . Parts Damaged . | . . . Bothacking | -11 -10 -10 ------------ Run | Yrd Mat Min Used RIF Installer . | . . . Robots Hacked . | . . . Non-combat . | . . . Combat . | . . . Robot Hacks Applied . | . . . Relay Couplers Released . | . . . Fabnet Peak Effective % . | . . . Robots Rewired . | . . . Allies Hacked . | . . . Hacks Repelled . | . . . Allies | -11 -10 -10 -------- Run | Yrd Mat Min Total Allies . | . . . Largest Group . | . . . Highest-Rated Group . | . . . Highest-Rated Ally . | . . . Total Orders . | . . . Ally Attacks . | . . . Total Damage . | . . . Kills . | . . . Allies Corrupted . | . . . Allies Melted . | . . . Intel | -11 -10 -10 ------- Run | Yrd Mat Min Active Infowar (turns) . | . . . Robot Analysis Total . | . . . Derelict Logs Recovered . | . . . Drone Launches . | . . . Drone Recoveries . | . . . Exploration | -11 -10 -10 ------------- Run | Yrd Mat Min Turns Passed 664 | 25 509 130 Spaces Moved 790 | 40 613 137 Core 84 | 40 44 . Treads . | . . . Legs 149 | . 149 . Wheels . | . . . Hover 6 | . . 6 Flight 551 | . 420 131 Fastest Speed 34 | 50 34 34 Average Speed 54 | 50 58 37 Slowest Speed 120 | 50 120 80 Overloaded Moves . | . . . Propulsion Burnouts . | . . . Robots Hopped . | . . . Potential Cave-ins . | . . . Cave-ins Triggered . | . . . Exploration Rate (%) 40 | 3 92 27 Regions Visited 2 Branch Regions 1 Pre-discovered Areas . | . . . Known Exits Taken 2 | 1 1 . Unknown Exits Taken . | . . . Scrap Searched . | . . . Spaces Dug . | . . . Terrain Destroyed . | . . . Melee . | . . . Projectile . | . . . AOE . | . . . Terrain Rammed . | . . . Walls Destroyed . | . . . Machines Disabled . | . . . Actions | -11 -10 -10 --------- Run | Yrd Mat Min Total 947 | 44 703 200 Wait 60 | . 12 48 Move 788 | 39 612 137 Hop . | . . . Pick Up 11 | 5 6 . Fast Attach 7 | . 5 2 Attach 3 | . 3 . Detach . | . . . Swap 5 | . 4 1 Drop 7 | . 6 1 Fire 65 | . 54 11 Melee . | . . . Ram . | . . . Kick 1 | . 1 . Crush . | . . . Escape Stasis . | . . . Rewire . | . . . Trap . | . . . Miscellaneous . | . . . Route ------- -11/Scrapyard -10/Materials (discovered 5 exits: *Mat x3 / *Min x2) -10/Mines (discovered 1 exit: *Mat) History --------- Turn | Location | Event 14 | -11/Scrapyard | Identified exit to Materials 14 | -11/Scrapyard | Discovered exit to Materials (range 16) 26 | -11/Scrapyard | Entered Materials 26 | -10/Materials | Evolved 1 slot: Propulsion x1 161 | -10/Materials | Identified exit to Materials 161 | -10/Materials | Discovered exit to Materials (range 8) 329 | -10/Materials | Core integrity fell below 50% 372 | -10/Materials | Discovered exit to Materials (range 15) 403 | -10/Materials | Identified exit to Mines 403 | -10/Materials | Discovered exit to Mines (range 8) 450 | -10/Materials | Discovered exit to Materials (range 9) 531 | -10/Materials | Discovered exit to Mines (range 8) 535 | -10/Materials | Entered Mines 545 | -10/Mines | Assembled infested the area 567 | -10/Mines | Found a hidden stash of uninstalled traps 569 | -10/Mines | Discovered exit to Materials (range 11) 635 | -10/Mines | Core integrity fell below 20% 654 | -10/Mines | Build established: Hacker-Mutant 665 | -10/Mines | Destroyed by as-95470 with Assembled Blade Last Messages --------------- 00541_ Extracted 20 matter. 00545_ ALERT: Infestation in the mines, dispatching Demolisher response squad. 00564_ C-45 Heavy ARC bursts open, deploying its payload. 00564_ D-53 Grenadier unfolds itself. 00564_ Flight Unit destroyed. 00567_ A stash of uninstalled traps is collected here! 00569_ EXIT=FOUND: MATERIALS 00570_ K-01 Serf collects debris. 00633_ Acquired Cmb. Airjet. 00642_ 0RN&%ZPLO9AECW,QZCN6M :S:MAFSLSNQR0 00642_ as-86568 destroyed. 00643_ The unstable cave ceiling collapses. 00647_ as-55261 destroyed. 00651_ Acquired 11 matter. 00654_ Lgt. Nuclear Core destroyed. 00655_ Flight Unit destroyed. 00660_ as-94630 destroyed. Map ----- +----------------------------------------------------+ | ?????????????????????????????????????????????????? | | ?????????????????????????????????????????????????? | | ?????????????????????????????????????????????????? | | ?????????????????????????????????????????????????? | | ????????????????????????????????? ??????????????? | | ????????????????????????????????# #?????????????? | | ????????????????????????????????# #????????????? | | ???????????????????????????????## ##??????????? | | ???????????????????????????????# ##?????????? | | ??????????????????????????????? #?????????? | | ???????????????????????????????? ##????????? | | ????????????????????????????????? =%????????? | | ?????????????????????????????????? ?????????? | | ???????????????????????????????????" ??????????? | | ??????????????????????????? ???????# #??????????? | | ??????????????????????????? #??????# #??????????? | | ??????????????????????????? #?????## #######????? | | ?????????????????????###??? #????## ####?? | | ?????????????????????# ?? #???## ### | | ?????????????????????# $?? #???# | | ?????????????????????? ### ##### | | ??????????????????????# # a ##a ## | | ??????????????????????# a a #### ##? | | ?????????????????????## %a ##??####?? | | ?????????????????????# # a ##### ##????????? | | ?????????????????????# @ # #?## ##?????????? | | ????????????????????## # #########??????????? | | ????????????????????# # ## # ###?????????????? | | ????????????????????# % ##???????####?? | | ????????????????????# # #???????# ##? | | ???????????????????##### # #???????# ## | | ???????????????????# # # ##??????## | | ???????????????????# # ######???# | | ???????????????????# # #???# | | ???????????????????## # % ###### | | ????????????????????## < | | ???????????????????# ## | | ???????????????????# # # # # ##### ### | | ???????????????????# # ## # # ########???####?? | | ???????????????????#### #?########???????????????? | | ??????????????????????##?????????????????????????? | | ?????????????????????????????????????????????????? | | ?????????????????????????????????????????????????? | | | | | | | | | | | | | | | +----------------------------------------------------+ Best States ------------- Heat Dissipation 25 Energy Generation 14 Energy Capacity 160 Matter Stores 300 Matter Capacity 300 Sight Range 16 Terrain Scan Density 10 Additional Mass Support 6 Resistance: KI 35 Resistance: TH 35 Resistance: EX 35 Resistance: EM 35 Resistance: I 35 Resistance: S 35 Resistance: P 35 Evasion (%) 63 Offensive Hacking 20 Item Schematics ----------------- None Robot Schematics ------------------ None Fabricated ------------ Nothing Repaired ---------- Nothing Studied --------- None Alien Tech Used ----------------- None Achievements -------------- None Challenges ------------ None Game ------ Seed SlugRestorationBallwheel Manual? 0 Play Time 00:07:36 Cumulative 146.1 hours Start 2025.11.27 @ 10:44:38 End 2025.11.27 @ 10:50:47 Sessions 1 Manual Loads 0 Difficulty Explorer Special Mode None Game No. 178 Rogue 0 Adventurer 0 Explorer 178 Win Type - Total 0 Types 0/0/0/0/0/0/0/0/0/0 Lore% 69 Gallery% 66 Achievement% 52 Wizard Run 0 Options --------- Layout 1 ASCII 0 Keyboard 0 Movement Mouse Keybinds 0 Fullscreen 1 Font 24/Smallcaps Map View 50x35 Zoom Use 0% Tactical HUD 1 Map Filters NONE Filters NONE Steam 1 RUN: 8b9dd053-f295-4f9f-99a2-623d714edcf2